fUSD/lending_fUSD_20241216
["ID","MTS","AMOUNT","RATE_DAILY","PERIOD"]
[345522323,1734311468202,-500.0,0.00022499,3]
[345522324,1734311468212,-500.0,0.00022499,3]
[345522325,1734311468221,-606.57,0.00022499,3]
[345522326,1734311468231,-500.0,0.00022499,3]
[345522327,1734311468242,-500.0,0.00022499,3]
[345522328,1734311468252,-500.0,0.00022499,3]
[345522329,1734311468262,-606.57,0.00022499,3]
[345522330,1734311468272,-500.0,0.00022499,3]
[345522331,1734311468282,-500.0,0.00022499,3]
[345522332,1734311468292,-500.0,0.00022499,3]
[345522333,1734311468302,-500.0,0.00022499,3]
[345522334,1734311468311,-606.57,0.00022499,3]
[345522335,1734311468321,-500.0,0.00022499,3]
[345522336,1734311468336,-500.0,0.00022499,3]
[345522337,1734311468346,-500.0,0.00022499,3]
[345522338,1734311468356,-606.57,0.00022499,3]
[345522339,1734311468367,-500.0,0.00022499,3]
[345522340,1734311468377,-606.57,0.00022499,3]
[345522341,1734311468387,-500.0,0.00022499,3]
[345522342,1734311468397,-606.57,0.00022499,3]
[345522343,1734311468407,-500.0,0.00022499,3]
[345522344,1734311468416,-500.0,0.00022499,3]
[345522345,1734311468426,-500.0,0.00022499,3]
[345522346,1734311468436,-601.78483822,0.00022499,3]
[345522347,1734311468446,-606.57,0.00022499,3]
[345522348,1734311468456,-500.0,0.00022499,3]
[345522349,1734311468465,-500.0,0.00022499,3]
[345522350,1734311468475,-483.95917588,0.00022499,3]
[345522351,1734311468485,-500.0,0.00022499,3]
[345522352,1734311468495,-606.57,0.00022499,3]
[345522353,1734311468504,-500.0,0.00022499,3]
[345522354,1734311468514,-606.59,0.00022499,3]
[345522355,1734311468523,-367.62,0.00022499,3]
[345522356,1734311468533,-500.0,0.00022499,3]
[345522357,1734311468542,-500.0,0.00022499,3]
[345522358,1734311468552,-500.0,0.00022499,3]
[345522359,1734311468562,-500.0,0.00022499,3]
[345522360,1734311468572,-500.0,0.00022499,3]
[345522361,1734311468586,-500.0,0.00022499,3]
[345522362,1734311468596,-500.0,0.00022499,3]
[345522363,1734311468606,-500.0,0.00022499,3]
[345522364,1734311468703,-604.07644194,0.00022499,3]
[345522365,1734311468714,-522.25,0.00022499,3]
[345522366,1734311468724,-500.0,0.00022499,3]
[345522367,1734311468734,-500.0,0.00022499,3]
[345522368,1734311468744,-326.83263757,0.00022499,3]
[345522369,1734311468753,-828.16,0.00022499,3]
[345522370,1734311468763,-828.16,0.00022499,3]
[345522371,1734311468772,-828.16,0.00022499,3]
[345522372,1734311468782,-828.16,0.00022499,3]
[345522373,1734311468791,-828.16,0.00022499,3]
[345522374,1734311468801,-828.16,0.00022499,3]
[345522375,1734311468810,-500.0,0.00022499,3]
[345522376,1734311468820,-828.16,0.00022499,3]
[345522377,1734311468832,-500.0,0.00022499,3]
[345522378,1734311468842,-500.0,0.00022499,3]
[345522379,1734311468852,-828.16,0.00022499,3]
[345522380,1734311468861,-500.0,0.00022499,3]
[345522381,1734311468871,-500.0,0.00022499,3]
[345522382,1734311468880,-828.16,0.00022499,3]
[345522383,1734311468890,-358.60327804,0.00022499,3]
[345522384,1734311468899,-828.16,0.00022499,3]
[345522385,1734311468909,-414.38401889,0.00022499,3]
[345522386,1734311468919,-828.16,0.00022499,3]
[345522387,1734311468933,-828.16,0.00022499,3]
[345522388,1734311468942,-828.16,0.00022499,3]
[345522389,1734311468952,-308.42349094,0.00022499,3]
[345522390,1734311468962,-828.16,0.00022499,3]
[345522391,1734311468972,-828.16,0.00022499,3]
[345522392,1734311468983,-828.16,0.00022499,3]
[345522393,1734311468993,-828.16,0.00022499,3]
[345522394,1734311469003,-828.16,0.00022499,3]
[345522395,1734311469013,-500.0,0.00022499,3]
[345522396,1734311469023,-828.16,0.00022499,3]
[345522397,1734311469032,-500.0,0.00022499,3]
[345522398,1734311469042,-828.35,0.00022499,3]
[345522399,1734311469053,-500.0,0.00022499,3]
[345522400,1734311469062,-500.0,0.00022499,3]
[345522401,1734311469072,-500.0,0.00022499,3]
[345522402,1734311469087,-500.0,0.00022499,3]
[345522403,1734311469097,-500.0,0.00022499,3]
[345522404,1734311469109,-500.0,0.00022499,3]
[345522405,1734311469119,-383.75995675,0.00022499,3]
[345522406,1734311469130,-500.0,0.00022499,3]
[345522407,1734311469139,-536.11,0.00022499,3]
[345522408,1734311469149,-2793.4,0.00022499,3]
[345522409,1734311469159,-2793.4,0.00022499,3]
[345522410,1734311469169,-514.34,0.00022499,3]
[345522411,1734311469179,-2793.4,0.00022499,3]
[345522412,1734311469189,-514.34,0.00022499,3]
[345522413,1734311469199,-2793.4,0.00022499,3]
[345522414,1734311469210,-500.0,0.00022499,3]
[345522415,1734311469220,-2793.4,0.00022499,3]
[345522416,1734311469232,-514.34,0.00022499,3]
[345522417,1734311469242,-500.0,0.00022499,3]
[345522418,1734311469252,-514.34,0.00022499,3]
[345522419,1734311469262,-2793.4,0.00022499,3]
[345522420,1734311469272,-2793.4,0.00022499,3]
[345522421,1734311469282,-514.34,0.00022499,3]
[345522422,1734311469291,-514.34,0.00022499,3]
[345522423,1734311469301,-2793.4,0.00022499,3]
[345522424,1734311469310,-514.34,0.00022499,3]
[345522425,1734311469319,-2793.4,0.00022499,3]
[345522426,1734311469333,-514.34,0.00022499,3]
[345522427,1734311469342,-2793.4,0.00022499,3]
[345522428,1734311469352,-2793.4,0.00022499,3]
[345522429,1734311469362,-514.34,0.00022499,3]
[345522430,1734311469372,-500.0,0.00022499,3]
[345522431,1734311469381,-514.34,0.00022499,3]
[345522432,1734311469391,-2793.4,0.00022499,3]
[345522433,1734311469401,-500.0,0.00022499,3]
[345522434,1734311469411,-514.34,0.00022499,3]
[345522435,1734311469421,-2793.4,0.00022499,3]
[345522436,1734311469430,-500.0,0.00022499,3]
[345522437,1734311469440,-500.0,0.00022499,3]
[345522438,1734311469450,-514.34,0.00022499,3]
[345522439,1734311469460,-2793.4,0.00022499,3]
[345522440,1734311469470,-500.0,0.00022499,3]
[345522441,1734311469479,-500.0,0.00022499,3]
[345522442,1734311469489,-2793.4,0.00022499,3]
[345522443,1734311469498,-514.34,0.00022499,3]
[345522444,1734311469508,-500.0,0.00022499,3]
[345522445,1734311469517,-500.0,0.00022499,3]
[345522446,1734311469527,-2793.4,0.00022499,3]
[345522447,1734311469537,-500.0,0.00022499,3]
[345522448,1734311469546,-500.0,0.00022499,3]
[345522449,1734311469556,-500.0,0.00022499,3]
[345522450,1734311469566,-2793.4,0.00022499,3]
[345522451,1734311469579,-514.34,0.00022499,3]
[345522452,1734311469589,-500.0,0.00022499,3]
[345522453,1734311469599,-500.0,0.00022499,3]
[345522454,1734311469609,-500.0,0.00022499,3]
[345522455,1734311469618,-2793.4,0.00022499,3]
[345522456,1734311469628,-514.34,0.00022499,3]
[345522457,1734311469638,-500.0,0.00022499,3]
[345522458,1734311469649,-231.51745594,0.00022499,3]
[345522459,1734311469659,-500.0,0.00022499,3]
[345522460,1734311469669,-2793.4,0.00022499,3]
[345522461,1734311469679,-514.34,0.00022499,3]
[345522462,1734311469689,-520.91,0.00022499,3]
[345522463,1734311469698,-500.0,0.00022499,3]
[345522464,1734311469708,-514.34,0.00022499,3]
[345522465,1734311469718,-500.0,0.00022499,3]
[345522466,1734311469727,-500.0,0.00022499,3]
[345522467,1734311469737,-2793.41593959,0.00022499,3]
[345522468,1734311469746,-514.34,0.00022499,3]
[345522469,1734311469756,-500.0,0.00022499,3]
[345522470,1734311469765,-500.0,0.00022499,3]
[345522471,1734311469774,-514.34,0.00022499,3]
[345522472,1734311469784,-500.0,0.00022499,3]
[345522473,1734311469793,-513.39,0.00022499,3]
[345522474,1734311469804,-500.0,0.00022499,3]
[345522475,1734311469814,-514.42,0.00022499,3]
[345522476,1734311469824,-500.0,0.00022499,3]
[345522477,1734311469838,-500.0,0.00022499,3]
[345522478,1734311469853,-162.18271975,0.00022499,3]
[345522479,1734311469863,-500.0,0.00022499,3]
[345522480,1734311469873,-500.0,0.00022499,3]
[345522481,1734311469883,-312.47,0.00022499,3]
[345522482,1734311469895,-283.3282871,0.00022499,3]
[345522483,1734311469906,-500.0,0.00022499,3]
[345522484,1734311469918,-500.0,0.00022499,3]
[345522485,1734311469929,-500.0,0.00022499,3]
[345522486,1734311469939,-500.0,0.00022499,3]
[345522487,1734311469948,-500.0,0.00022499,3]
[345522488,1734311469959,-500.0,0.00022499,3]
[345522489,1734311469968,-500.0,0.00022499,3]
[345522490,1734311469978,-500.0,0.00022499,3]
[345522491,1734311469988,-290.48,0.00022499,3]
[345522492,1734311469998,-500.0,0.00022499,3]
[345522493,1734311470010,-406.10638191,0.00022499,3]
[345522494,1734311470020,-500.0,0.00022499,3]
[345522495,1734311470030,-500.0,0.00022499,3]
[345522496,1734311470040,-500.0,0.00022499,3]
[345522497,1734311470050,-358.12,0.00022499,3]
[345522498,1734311470060,-500.0,0.00022499,3]
[345522499,1734311470069,-500.0,0.00022499,3]
[345522500,1734311470082,-500.0,0.00022499,3]
[345522501,1734311470091,-461.92,0.00022499,3]
[345522502,1734311470100,-500.0,0.00022499,3]
[345522503,1734311470110,-500.0,0.00022499,3]
[345522504,1734311470120,-636.3,0.00022499,3]
[345522505,1734311470130,-553.44,0.00022499,3]
[345522506,1734311470139,-553.44,0.00022499,3]
[345522507,1734311470149,-500.0,0.00022499,3]
[345522508,1734311470159,-500.0,0.00022499,3]
[345522509,1734311470168,-553.44,0.00022499,3]
[345522510,1734311470177,-500.0,0.00022499,3]
[345522511,1734311470187,-553.44,0.00022499,3]
[345522512,1734311470198,-958.54,0.00022499,3]
[345522513,1734311470208,-500.0,0.00022499,3]
[345522514,1734311470218,-553.44,0.00022499,3]
[345522515,1734311470228,-958.54,0.00022499,3]
[345522516,1734311470328,-553.44,0.00022499,3]
[345522517,1734311470338,-958.54,0.00022499,3]
[345522518,1734311470348,-553.44,0.00022499,3]
[345522519,1734311470358,-958.54,0.00022499,3]
[345522520,1734311470368,-553.44,0.00022499,3]
[345522521,1734311470378,-958.54,0.00022499,3]
[345522522,1734311470388,-553.44,0.00022499,3]
[345522523,1734311470397,-958.54,0.00022499,3]
[345522524,1734311470407,-553.44,0.00022499,3]
[345522525,1734311470417,-958.54,0.00022499,3]
[345522526,1734311470427,-553.44,0.00022499,3]
[345522527,1734311470436,-958.54,0.00022499,3]
[345522528,1734311470446,-553.44,0.00022499,3]
[345522529,1734311470456,-958.54,0.00022499,3]
[345522530,1734311470466,-553.44,0.00022499,3]
[345522531,1734311470476,-958.54,0.00022499,3]
[345522532,1734311470485,-958.54,0.00022499,3]
[345522533,1734311470495,-553.44,0.00022499,3]
[345522534,1734311470505,-958.54,0.00022499,3]
[345522535,1734311470514,-553.53365408,0.00022499,3]
[345522536,1734311470524,-958.54,0.00022499,3]
[345522537,1734311470533,-958.54,0.00022499,3]
[345522538,1734311470542,-958.54,0.00022499,3]
[345522539,1734311470551,-958.54,0.00022499,3]
[345522540,1734311470560,-500.0,0.00022499,3]
[345522541,1734311470570,-229.12,0.00022499,3]
[345522542,1734311470582,-958.61,0.00022499,3]
[345522543,1734311470591,-7281.53021522,0.00022499,2]
[345522544,1734311470602,-30000.0,0.000225,2]
[345522545,1734311470612,-433651.13567654,0.000225,4]
[345522546,1734311470621,-878.81189393,0.000225,2]
[345522547,1734311470630,-5064700.13150263,0.000225,2]
[345522548,1734311470926,-52214.76199084,0.000225,2]
[345522549,1734311470942,-20012.4229599,0.000225,2]
[345522550,1734311470955,-52893.72890563,0.000225,2]
[345522551,1734311470986,-500.0,0.00022244,3]
[345522552,1734311470995,-279.65374617,0.00022244,3]
[345522553,1734311471005,-500.0,0.00022498,3]
[345522554,1734311471014,-1086.89156624,0.000225,2]
[345522555,1734311471025,-688.56,0.000225,2]
[345522556,1734311471112,-42.64049914,0.000225,2]
[345522557,1734311471514,-419.16820509,0.00022496,3]
[345522558,1734311471526,-80.83179491,0.00022496,3]
[345522559,1734311471536,-500.0,0.00022499,3]
[345522560,1734311471546,-500.0,0.00022499,3]
[345522561,1734311471556,-500.0,0.00022499,3]
[345522562,1734311471565,-500.0,0.00022499,3]
[345522563,1734311471575,-500.0,0.00022499,3]
[345522564,1734311471588,-524.42644964,0.00022499,3]
[345522565,1734311471597,-500.0,0.00022499,3]
[345522566,1734311471606,-500.0,0.00022499,3]
[345522567,1734311471615,-153.95,0.00022499,3]
[345522568,1734311471625,-51678.96890908,0.000225,2]
[345522569,1734311471693,-7792.99227276,0.000225,2]
[345522570,1734311471767,500.0,0.00019164,2]
[345522571,1734311471989,-500.0,0.00021356,2]
[345522572,1734311471999,-500.0,0.00021972,3]
[345522573,1734311472010,-500.0,0.00021998,3]
[345522574,1734311472020,-500.0,0.00021998,3]
[345522575,1734311472029,-500.0,0.00022243,3]
[345522576,1734311472039,-500.0,0.00022243,3]
[345522577,1734311472048,-500.0,0.00022243,3]
[345522578,1734311472058,-500.0,0.00022244,3]
[345522579,1734311472068,-257.19333504,0.00022473,2]
[345522580,1734311472135,-242.80666496,0.00022473,2]
[345522581,1734311472145,-500.0,0.00022486,3]
[345522582,1734311472154,-500.0,0.00022486,3]
[345522583,1734311472164,-500.0,0.00022487,3]
[345522584,1734311472174,-1538.64,0.00022493,2]
[345522585,1734311472183,-1949.01,0.00022493,2]
[345522586,1734311472192,-869.8,0.00022493,2]
[345522587,1734311472202,-500.0,0.00022497,3]
[345522588,1734311472212,-500.0,0.00022497,3]
[345522589,1734311472222,-500.0,0.00022498,3]
[345522590,1734311472232,-500.0,0.00022498,3]
[345522591,1734311472242,-305.02,0.00022498,3]
[345522592,1734311472252,-500.0,0.00022498,3]
[345522593,1734311472261,-199.00392128,0.00022498,3]
[345522594,1734311472271,-500.0,0.00022498,3]
[345522595,1734311472281,-500.0,0.00022498,3]
[345522596,1734311472291,-31166.13487438,0.000225,2]
[345522597,1734311472302,-421613.5647966,0.000225,2]
[345522598,1734311472314,-1055.0,0.000225,2]
[345522599,1734311472340,-202.06,0.00022498,3]
[345522600,1734311472350,-7023.95070056,0.000225,2]
[345522601,1734311472368,-3136.70291846,0.000225,2]
[345522602,1734311472384,-1473605.4032002,0.000225,2]
[345522603,1734311472418,-2952.60570401,0.000225,2]
[345522604,1734311472492,-500.0,0.00022243,3]
[345522605,1734311472502,-500.0,0.00022243,3]
[345522606,1734311472511,-500.0,0.00022487,3]
[345522607,1734311472521,-500.0,0.00022487,3]
[345522608,1734311472531,-256.18,0.00022498,3]
[345522609,1734311472540,-76691.31999998,0.000225,2]
[345522610,1734311472551,-1706.02813251,0.000225,2]
[345522611,1734311472582,-500.0,0.00021998,3]
[345522612,1734311472591,-5166.97542342,0.000225,2]
[345522613,1734311472603,-4458.70728438,0.000225,2]
[345522614,1734311472614,-4006.6,0.000225,2]
[345522615,1734311472624,-317.19,0.000225,2]
[345522616,1734311472639,-500.0,0.00022243,3]
[345522617,1734311472648,-804.7970127,0.000225,2]
[345522618,1734311472761,381.38,0.00021,120]
[345522623,1734311759296,161.07,0.00010137,2]
[345522627,1734311979163,450.0,0.00021,120]
[345522630,1734312328368,165.28,0.00013699,2]
[345522634,1734312435144,-150.34898908,0.00017678,2]
[345522647,1734312549110,-6673.06136952,0.00017678,2]
[345522648,1734312549132,-446.85276063,0.00018866,2]
[345522649,1734312549163,-194.92723937,0.00018866,2]
[345522650,1734312549186,-41500.0,0.00019,2]
[345522651,1734312549208,-500.0,0.00019164,2]
[345522652,1734312549229,-1198.11079188,0.000199,2]
[345522653,1734312549254,-199.06880135,0.000199,2]
[345522654,1734312549275,-161.3757423,0.00019973,2]
[345522655,1734312549297,-150.0,0.00019999,2]
[345522656,1734312549322,-300.0,0.00019999,2]
[345522657,1734312549344,-5346.10716748,0.00019999,2]
[345522658,1734312549371,-183.62965493,0.00019999,2]
[345522659,1734312549393,-175.29975199,0.00019999,2]
[345522660,1734312549416,-619.13,0.0002,2]
[345522661,1734312549437,-62500.39280316,0.0002,2]
[345522662,1734312549458,-36414.25037279,0.0002,2]
[345522663,1734312549481,-127852.77467475,0.0002,2]
[345522664,1734312554184,-92323.6489,0.0002,2]
[345522665,1734312554211,-417329.4034,0.0002,2]
[345522666,1734312559112,-47900.8712,0.0002,2]
[345522667,1734312569136,-1107.65173299,0.000199,2]
[345522668,1734312569160,-135716.81226701,0.0002,2]
[345522669,1734312570154,-25564.07714,0.0002,2]
[345522670,1734312570211,-44465.31264,0.0002,2]
[345522681,1734312632218,-369.66283205,0.000199,2]
[345522682,1734312632228,-172.4,0.0001999,2]
[345522683,1734312632238,-4195.10395642,0.0002,2]
[345522684,1734312632249,-450.653,0.0002,2]
[345522686,1734312632262,-6723.20293524,0.0002,2]
[345522687,1734312632276,-59721.662204,0.0002,2]
[345522688,1734312632762,-254609.582478,0.0002,2]
[345522689,1734312632901,-320802.86049275,0.0002,2]
[345522690,1734312632913,-1189.367004,0.0002,2]
[345522691,1734312632924,-174526.7018,0.0002,2]
[345522692,1734312632937,-13943.42500109,0.0002,2]
[345522834,1734312638174,-500.0,0.00019164,2]
[345522835,1734312638183,-159.52122475,0.000199,2]
[345522836,1734312638192,-501.95858285,0.0002,2]
[345522837,1734312638203,-119067.30084104,0.0002,2]
[345522838,1734312638492,-577.79016668,0.0002,2]
[345522839,1734312638628,-1001.01637353,0.0002,2]
[345522840,1734312638640,-3286.3079396,0.0002,2]
[345522880,1734312640111,-9651.56884301,0.0002,2]
[345522882,1734312640122,-10061.71747772,0.0002,2]
[345522883,1734312640134,-3415.0,0.0002,2]
[345522884,1734312640250,-23754.664139,0.0002,2]
[345522885,1734312640263,-15277.77302452,0.0002,2]
[345522886,1734312640340,163.92681394,0.00014781,7]
[345522887,1734312640390,-264.339999,0.0002,2]
[345522888,1734312640401,-1431.83,0.0002,2]
[345522889,1734312640412,-7892.563803,0.0002,2]
[345522890,1734312640423,-52465.0,0.0002,2]
[345522891,1734312640527,-3814.92005046,0.0002,2]
[345522913,1734312644175,-1053.36842099,0.0002,2]
[345522914,1734312644187,-4242.92162681,0.0002,2]
[345522915,1734312644198,-20573.57322286,0.0002,2]
[345522918,1734312644564,-52542.1569888,0.0002,2]
[345522919,1734312644578,-706.23,0.0002,2]
[345522920,1734312644638,-5392.65963359,0.0002,2]
[345522931,1734312646158,-397.60981,0.0002,2]
[345522935,1734312646295,-20468.50926385,0.0002,2]
[345522936,1734312646314,-336.92813569,0.0002,2]
[345522937,1734312646327,-3958.95481675,0.0002,2]
[345522938,1734312646478,-9733.8571043,0.0002,2]
[345522939,1734312646491,-35304.96441161,0.0002,2]
[345522945,1734312782490,156.14,0.00010137,2]
[345522952,1734313545146,-280.70199403,0.00017396,2]
[345522953,1734313634096,-364.66800597,0.00017396,2]
[345522954,1734313634118,-243.93818961,0.00018829,2]
[345522955,1734313640102,-44450.10591433,0.00018829,2]
[345522956,1734313649164,-7758.75146028,0.00018829,2]
[345522957,1734313745091,-2653.41859931,0.00018829,2]
[345522958,1734313758102,-292.871922,0.00018829,2]
[345522959,1734313760113,-743.010471,0.00018829,2]
[345522960,1734313766095,-14840.90344347,0.00018829,2]
[345522961,1734313766117,-247.4,0.00018858,2]
[345522962,1734313766138,-1153.4,0.0001886,2]
[345522963,1734313766160,-751.57,0.0001888,2]
[345522964,1734313766181,-250.0,0.00018902,2]
[345522965,1734313766201,-3527.79,0.00018937,2]
[345522966,1734313766222,-250.0,0.00018997,2]
[345522967,1734313766249,-456.50838147,0.00019018,2]
[345522968,1734313766270,-9138.93549506,0.00019044,2]
[345522969,1734313771207,-150.0,0.00018821,2]
[345522970,1734313771230,-1421.384822,0.00019044,2]
[345522971,1734313774119,-277.85968294,0.00019044,2]
[345522972,1734313774142,-731.0,0.0001912,2]
[345522973,1734313774164,-150.99,0.0001912,2]
[345522974,1734313774186,-4386.05616506,0.0001912,2]
[345522975,1734313818140,155.24,0.00010137,2]
[345522984,1734313832447,-155.24,0.00016813,2]
[345522985,1734313832457,-2822.23,0.00019104,2]
[345522986,1734313832467,-300.0,0.00019119,2]
[345522987,1734313832477,-5613.93383494,0.0001912,2]
[345522988,1734313832486,-7881.77,0.0001912,2]
[345522989,1734313832496,-3099.72416744,0.0001912,2]
[345522990,1734313832648,-460.00114256,0.0001912,2]
[345522991,1734313832659,-501.4471125,0.0001912,2]
[345522992,1734313832671,-511.8,0.0001912,2]
[345522993,1734313832838,-20404.0975775,0.0001912,2]
[345522994,1734313832849,-404.52,0.0001912,2]
[345522995,1734313832860,-150.99,0.0001912,2]
[345522996,1734313832870,-1000.0,0.00019149,2]
[345522997,1734313832880,-400.75645063,0.00019528,2]
[345522998,1734313832889,-247.4,0.00019556,2]
[345522999,1734313832899,-645.37,0.0001966,2]
[345523000,1734313832909,-1002.15,0.000198,3]
[345523001,1734313832918,-3000.0,0.000198,2]
[345523002,1734313832928,-24694.41909571,0.0001981,2]
[345523003,1734313832938,-168.89,0.0001983,2]
[345523004,1734313832948,-185.06414359,0.000199,2]
[345523005,1734313832958,-185.16541152,0.000199,2]
[345523006,1734313832968,-167.07780846,0.000199,2]
[345523007,1734313832977,-163.35064852,0.000199,2]
[345523008,1734313832986,-159.52122474,0.000199,2]
[345523009,1734313832995,-1687.23759979,0.000199,2]
[345523010,1734313833005,-372.43698774,0.000199,2]
[345523011,1734313833014,-500.0,0.00019973,2]
[345523012,1734313833024,-986.0,0.00019973,2]
[345523013,1734313833034,-299.83916993,0.00019973,2]
[345523014,1734313833044,-500.79844032,0.00019973,2]
[345523015,1734313833054,-160.09452992,0.00019973,2]
[345523016,1734313833064,-160.09528558,0.00019973,2]
[345523017,1734313833074,-504.36751113,0.00019973,2]
[345523018,1734313833084,-501.29557562,0.00019973,2]
[345523019,1734313833094,-262.36507062,0.0001999,2]
[345523020,1734313833104,-262.36507062,0.0001999,2]
[345523021,1734313833113,-376.28815536,0.00019999,2]
[345523022,1734313833123,-60000.0,0.00019999,2]
[345523023,1734313833133,-40000.0,0.00019999,3]
[345523024,1734313833144,-4727.0,0.0002,2]
[345523025,1734313833153,-215460.66183488,0.0002,4]
[345523026,1734313833165,-35182.94039083,0.0002,4]
[345523027,1734313833178,-9317.7035625,0.0002,4]
[345523028,1734313833225,-810.500272,0.0002,4]
[345523089,1734313838718,-161.69,0.00019051,2]
[345523090,1734313838728,-981.97,0.00019203,2]
[345523091,1734313838738,-400.75645063,0.00019767,2]
[345523092,1734313838747,-205351.97047511,0.0002,4]
[345523093,1734313838760,-1982.23774361,0.0002,4]
[345523094,1734313838771,-995.34817668,0.0002,4]
[345523095,1734313838780,-4133.21194123,0.0002,2]
[345523096,1734313838791,-4100.37500246,0.0002,2]
[345523097,1734313838801,-4313.10692435,0.0002,2]
[345523098,1734313838959,-22595.24264584,0.0002,2]
[345523099,1734313839085,-119.07302439,0.0002,2]
[345523100,1734313839139,-1100.2,0.0002,2]
[345523103,1734313839162,-1987894.55253937,0.0002,2]
[345523105,1734313839171,-11531.05593957,0.0002,2]
[345523107,1734313839181,-557.85,0.0002,2]
[345523109,1734313839190,-41088.0,0.0002,3]
[345523122,1734313839305,-31404.0,0.0002,2]
[345523124,1734313839317,-2822.23,0.00020059,2]
[345523126,1734313839326,-1000.0,0.00020099,2]
[345523128,1734313839335,-1687.23759975,0.00020113,2]
[345523130,1734313839344,-247.4,0.00020254,2]
[345523132,1734313839354,-158.26,0.00020273,30]
[345523134,1734313839363,-163.3506485,0.00020317,2]
[345523136,1734313839373,-1687.23759975,0.00020326,2]
[345523138,1734313839382,-1000.0,0.00020387,2]
[345523140,1734313839391,-1000.0,0.00020387,2]
[345523142,1734313839401,-1000.0,0.00020387,2]
[345523144,1734313839410,-1000.0,0.00020387,2]
[345523146,1734313839420,-1000.0,0.00020387,2]
[345523148,1734313839429,-902.0,0.00020387,2]
[345523150,1734313839439,-902.11,0.00020474,2]
[345523152,1734313839448,-287.2733416,0.0002049,3]
[345523154,1734313839457,-501.09404502,0.00020521,2]
[345523156,1734313839467,-1687.23759975,0.00020539,2]
[345523158,1734313839476,-500.0,0.00020546,2]
[345523160,1734313839485,-1596.0,0.00020548,7]
[345523162,1734313839494,-500.0,0.00020683,2]
[345523164,1734313839504,-163.3506485,0.00020733,2]
[345523165,1734313839513,-1687.23759975,0.00020752,2]
[345523166,1734313839521,-500.0,0.0002082,2]
[345523167,1734313839530,-420.0,0.00020837,2]
[345523168,1734313839539,-150.0,0.00020865,2]
[345523169,1734313839551,-247.4,0.00020952,2]
[345523170,1734313839559,-500.0,0.00020957,2]
[345523171,1734313839568,-1687.23759975,0.00020965,2]
[345523172,1734313839577,-150.0,0.00020996,2]
[345523173,1734313839586,-7173.92287144,0.00021,2]
[345523174,1734313839596,-144038.07847252,0.00021,8]
[345523176,1734313839606,-2822.23,0.00021015,2]
[345523178,1734313839616,-167.83,0.00021076,2]
[345523180,1734313839626,-500.0,0.00021094,2]
[345523182,1734313839635,-220.74123608,0.00021114,2]
[345523184,1734313839644,-163.3506485,0.0002115,2]
[345523186,1734313839654,-1687.23759975,0.00021178,2]
[345523188,1734313839664,-262.36507062,0.0002119,2]
[345523190,1734313839673,-1000.0,0.00021199,2]
[345523192,1734313839684,-1000.0,0.00021199,2]
[345523194,1734313839696,-175050.45383252,0.000212,2]
[345523196,1734313839705,-150.0,0.000212,2]
[345523198,1734313839714,-1153.64,0.00021205,2]
[345523200,1734313839724,-150.0,0.00021207,2]
[345523202,1734313839734,-1500.0,0.00021225,2]
[345523204,1734313839743,-500.0,0.00021231,2]
[345523206,1734313839752,-751.57,0.0002124,2]
[345523208,1734313839765,-150.0,0.00021301,2]